fUST/lending_fUST_20250708
["ID","MTS","AMOUNT","RATE_DAILY","PERIOD"]
[370385302,1751988667768,-1435.95,0.00024109,2]
[370385303,1751988667777,-549.84080627,0.00024109,2]
[370385304,1751988667786,-530.23230334,0.00024109,2]
[370385305,1751988667795,-2118.80828413,0.00024109,2]
[370385306,1751988667805,-460.0,0.00024109,2]
[370385307,1751988667814,-1026.07,0.00024109,2]
[370385308,1751988667823,-490.93,0.00024109,2]
[370385309,1751988667832,-758.19,0.00024109,2]
[370385310,1751988667842,-838.86,0.00024109,2]
[370385311,1751988667850,-5127.49,0.00024109,2]
[370385312,1751988667860,-901.2,0.00024109,2]
[370385313,1751988667869,-862.21,0.00024109,2]
[370385314,1751988667878,-2753.27,0.00024109,2]
[370385315,1751988667887,-835.38,0.00024109,2]
[370385316,1751988667896,-658.66,0.00024109,2]
[370385317,1751988667906,-3833.71,0.00024109,2]
[370385318,1751988667915,-460.0,0.00024109,2]
[370385319,1751988667925,-460.0,0.00024109,2]
[370385320,1751988667935,-646.83,0.00024109,2]
[370385321,1751988667945,-724.43,0.00024109,2]
[370385322,1751988667954,-673.37,0.00024109,2]
[370385323,1751988667965,-460.0,0.00024109,2]
[370385324,1751988667974,-1708.39,0.00024109,2]
[370385325,1751988667984,-597.74,0.00024109,2]
[370385326,1751988667993,-844.71,0.00024109,2]
[370385327,1751988668003,-664.63,0.00024109,2]
[370385328,1751988668013,-2473.14,0.00024109,2]
[370385329,1751988668023,-646.14,0.00024109,2]
[370385330,1751988668032,-487.61,0.00024109,2]
[370385332,1751988668042,-1506.99,0.00024109,2]
[370385333,1751988668051,-460.0,0.00024109,2]
[370385334,1751988668061,-2788.13,0.00024109,2]
[370385335,1751988668071,-688.11,0.00024109,2]
[370385336,1751988668081,-151.0,0.00024109,7]
[370385337,1751988668091,-752.17,0.00024109,2]
[370385338,1751988668101,-694.91,0.00024109,2]
[370385339,1751988668111,-151.0,0.00024109,7]
[370385340,1751988668120,-707.53,0.00024109,2]
[370385341,1751988668130,-2901.31,0.00024109,2]
[370385342,1751988668140,-605.75,0.00024109,2]
[370385343,1751988668149,-460.0,0.00024109,2]
[370385344,1751988668159,-460.0,0.00024109,2]
[370385345,1751988668168,-1269.5,0.00024109,2]
[370385346,1751988668178,-5408.87,0.00024109,2]
[370385347,1751988668187,-4052.16,0.00024109,2]
[370385348,1751988668196,-460.0,0.00024109,2]
[370385349,1751988668205,-723.51,0.00024109,2]
[370385350,1751988668215,-1137.52,0.00024109,2]
[370385351,1751988668224,-776.58,0.00024109,2]
[370385352,1751988668233,-510.15,0.00024109,2]
[370385353,1751988668243,-681.91,0.00024109,2]
[370385354,1751988668252,-1009.01,0.00024109,2]
[370385355,1751988668262,-2559.5,0.00024109,2]
[370385356,1751988668271,-1454.34,0.00024109,2]
[370385357,1751988668280,-677.21,0.00024109,2]
[370385358,1751988668290,-960.91,0.00024109,2]
[370385359,1751988668300,-510.04,0.00024109,2]
[370385360,1751988668309,-302.130693,0.00024156,4]
[370385361,1751988668318,-343.0,0.00024164,7]
[370385362,1751988668328,-229.152038,0.0002421,7]
[370385363,1751988668337,-229.152038,0.0002421,7]
[370385364,1751988668347,-175.630568,0.0002421,7]
[370385365,1751988668356,-175.630568,0.0002421,7]
[370385366,1751988668366,-6000.12112762,0.0002421,10]
[370385367,1751988668375,-823.0,0.00024238,2]
[370385368,1751988668386,-168.0,0.0002425,2]
[370385369,1751988668396,-748.96990294,0.00024275,2]
[370385370,1751988668406,-8670.98854842,0.00024289,2]
[370385371,1751988668415,-251.89,0.00024364,2]
[370385372,1751988668425,-1027.44,0.00024383,2]
[370385373,1751988668434,-151.0,0.00024383,7]
[370385374,1751988668444,-433.59035669,0.00024383,2]
[370385375,1751988668455,-863.55,0.00024383,2]
[370385376,1751988668466,-592.45,0.00024383,2]
[370385377,1751988668475,-512.5,0.00024383,2]
[370385378,1751988668484,-941.19,0.00024383,2]
[370385379,1751988668495,-898.19,0.00024383,2]
[370385380,1751988668506,-468.58,0.00024383,2]
[370385381,1751988668516,-811.62,0.00024383,2]
[370385382,1751988668526,-862.49,0.00024383,2]
[370385383,1751988668538,-510.43,0.00024383,2]
[370385384,1751988668550,-1555.07,0.00024383,2]
[370385385,1751988668561,-855.52,0.00024383,2]
[370385386,1751988668570,-460.0,0.00024383,2]
[370385387,1751988668583,-545.34,0.00024383,2]
[370385388,1751988668593,-633.51,0.00024383,2]
[370385389,1751988668604,-1397.65,0.00024383,2]
[370385390,1751988668614,-1921.6,0.00024383,2]
[370385391,1751988668625,-1435.95,0.00024383,2]
[370385392,1751988668635,-460.0,0.00024383,2]
[370385393,1751988668644,-1026.07,0.00024383,2]
[370385394,1751988668654,-490.93,0.00024383,2]
[370385395,1751988668664,-758.19,0.00024383,2]
[370385396,1751988668674,-838.86,0.00024383,2]
[370385397,1751988668684,-5127.49,0.00024383,2]
[370385398,1751988668694,-901.2,0.00024383,2]
[370385399,1751988668704,-862.21,0.00024383,2]
[370385400,1751988668716,-2753.27,0.00024383,2]
[370385401,1751988668725,-835.38,0.00024383,2]
[370385402,1751988668735,-658.66,0.00024383,2]
[370385403,1751988668746,-3833.71,0.00024383,2]
[370385404,1751988668755,-460.0,0.00024383,2]
[370385405,1751988668765,-460.0,0.00024383,2]
[370385406,1751988668775,-646.83,0.00024383,2]
[370385407,1751988668785,-724.43,0.00024383,2]
[370385408,1751988668795,-673.37,0.00024383,2]
[370385409,1751988668805,-1708.39,0.00024383,2]
[370385410,1751988668814,-460.0,0.00024383,2]
[370385411,1751988668823,-597.74,0.00024383,2]
[370385412,1751988668833,-844.71,0.00024383,2]
[370385413,1751988668843,-664.63,0.00024383,2]
[370385414,1751988668852,-2473.14,0.00024383,2]
[370385415,1751988668862,-646.14,0.00024383,2]
[370385416,1751988668871,-487.61,0.00024383,2]
[370385417,1751988668880,-1506.99,0.00024383,2]
[370385418,1751988668890,-460.0,0.00024383,2]
[370385419,1751988668900,-2788.13,0.00024383,2]
[370385420,1751988668909,-688.11,0.00024383,2]
[370385421,1751988668919,-752.17,0.00024383,2]
[370385422,1751988668929,-694.91,0.00024383,2]
[370385423,1751988668938,-707.53,0.00024383,2]
[370385424,1751988668949,-2901.31,0.00024383,2]
[370385425,1751988668958,-605.75,0.00024383,2]
[370385426,1751988668973,-460.0,0.00024383,2]
[370385427,1751988668983,-460.0,0.00024383,2]
[370385428,1751988668992,-1269.5,0.00024383,2]
[370385429,1751988669001,-5408.87,0.00024383,2]
[370385430,1751988669010,-4052.16,0.00024383,2]
[370385431,1751988669020,-460.0,0.00024383,2]
[370385432,1751988669029,-723.51,0.00024383,2]
[370385433,1751988669038,-1137.52,0.00024383,2]
[370385434,1751988669048,-776.58,0.00024383,2]
[370385435,1751988669057,-510.15,0.00024383,2]
[370385436,1751988669066,-681.91,0.00024383,2]
[370385437,1751988669076,-151.0,0.00024383,7]
[370385438,1751988669086,-1009.01,0.00024383,2]
[370385439,1751988669095,-2559.5,0.00024383,2]
[370385440,1751988669105,-677.21,0.00024383,2]
[370385441,1751988669114,-1454.34,0.00024383,2]
[370385442,1751988669124,-510.04,0.00024383,2]
[370385443,1751988669133,-960.91,0.00024383,2]
[370385444,1751988669143,-428.6046964,0.00024384,2]
[370385445,1751988669152,-428.6046964,0.00024384,2]
[370385446,1751988669162,-428.6046964,0.00024384,2]
[370385447,1751988669171,-1429.35,0.00024388,10]
[370385448,1751988669180,-6000.12112762,0.00024452,11]
[370385449,1751988669190,-151.0,0.00024452,7]
[370385450,1751988669199,-151.0,0.00024452,2]
[370385451,1751988669209,-151.0,0.00024452,2]
[370385452,1751988669221,-151.0,0.00024452,7]
[370385453,1751988669229,-464.63798615,0.00024485,2]
[370385454,1751988669238,-576.1435385,0.00024521,2]
[370385455,1751988669248,-576.1435385,0.00024521,2]
[370385456,1751988669257,-573.9416227,0.00024521,2]
[370385457,1751988669266,-30382.6928312,0.0002465,2]
[370385458,1751988669296,-500.0,0.00018766,2]
[370385459,1751988669305,-507.52,0.00019726,2]
[370385460,1751988669315,-1391.82615366,0.00023561,2]
[370385461,1751988669326,-753.99711264,0.00023561,2]
[370385462,1751988669387,-507.52,0.0002,2]
[370385463,1751988669396,-507.52,0.00020273,2]
[370385464,1751988669406,-77.7,0.00020547,2]
[370385465,1751988669532,-429.82,0.00020547,2]
[370385466,1751988669543,-507.52,0.00020821,2]
[370385467,1751988669552,-507.52,0.00021095,2]
[370385468,1751988669561,-507.52,0.00021369,2]
[370385469,1751988669571,-507.52,0.00021643,2]
[370385470,1751988669580,-507.52,0.00021917,2]
[370385471,1751988669589,-994.9967337,0.00023561,2]
[370385472,1751988669598,-3140.82,0.00023835,2]
[370385473,1751988669608,-3140.82,0.00024109,2]
[370385474,1751988669617,-3140.82,0.00024383,2]
[370385475,1751988669626,-171147.93866282,0.0002465,2]
[370385476,1751988669636,-128332.41006946,0.0002465,2]
[370385477,1751988669645,-151.0,0.0002465,7]
[370385478,1751988669654,-151.0,0.0002465,7]
[370385479,1751988669663,-204.830223,0.0002465,7]
[370385480,1751988669672,-151.0,0.0002465,7]
[370385481,1751988669681,-217.819591,0.0002465,7]
[370385482,1751988669690,-217.819591,0.0002465,7]
[370385483,1751988669699,-405.481259,0.0002465,7]
[370385484,1751988669709,-405.481259,0.0002465,7]
[370385485,1751988669841,-151.0,0.0002465,7]
[370385486,1751988669852,-151.0,0.0002465,7]
[370385487,1751988669862,-204.294437,0.0002465,7]
[370385488,1751988669871,-204.294433,0.0002465,7]
[370385489,1751988669882,-207.72812,0.0002465,7]
[370385490,1751988669891,-207.72812,0.0002465,7]
[370385491,1751988669901,-151.0,0.0002465,7]
[370385492,1751988669911,-237.233112,0.0002465,7]
[370385493,1751988669920,-160.0,0.0002465,7]
[370385494,1751988669930,-201.40044229,0.0002465,3]
[370385495,1751988669939,-154.0,0.0002465,3]
[370385496,1751988669949,-154.0,0.0002465,3]
[370385497,1751988669959,-154.0,0.0002465,3]
[370385498,1751988669970,-210.37605625,0.0002465,3]
[370385499,1751988669979,-156.56452431,0.0002465,3]
[370385500,1751988669989,-318.0,0.0002465,3]
[370385501,1751988669999,-318.0,0.0002465,3]
[370385502,1751988670009,-318.0,0.0002465,3]
[370385503,1751988670019,-277.85783841,0.0002465,3]
[370385504,1751988670028,-151.0,0.0002465,7]
[370385505,1751988670037,-151.0,0.0002465,7]
[370385506,1751988670047,-151.0,0.0002465,7]
[370385507,1751988670056,-151.0,0.0002465,7]
[370385508,1751988670066,-151.0,0.0002465,7]
[370385509,1751988670075,-151.0,0.0002465,7]
[370385510,1751988670085,-151.0,0.0002465,7]
[370385511,1751988670094,-151.0,0.0002465,7]
[370385512,1751988670104,-159.167098,0.0002465,7]
[370385513,1751988670114,-159.167098,0.0002465,7]
[370385514,1751988670123,-151.0,0.0002465,7]
[370385515,1751988670133,-151.0,0.0002465,7]
[370385516,1751988670143,-222.589772,0.0002465,7]
[370385517,1751988670153,-151.0,0.0002465,7]
[370385518,1751988670163,-151.0,0.0002465,7]
[370385519,1751988670174,-186.745944,0.0002465,7]
[370385520,1751988670183,-186.745944,0.0002465,7]
[370385521,1751988670193,-183.165504,0.0002465,7]
[370385522,1751988670202,-183.165504,0.0002465,7]
[370385523,1751988670215,-201.134597,0.0002465,7]
[370385524,1751988670224,-201.134597,0.0002465,7]
[370385525,1751988670234,-151.0,0.0002465,7]
[370385526,1751988670243,-229.152038,0.0002465,7]
[370385527,1751988670253,-229.152038,0.0002465,7]
[370385528,1751988670262,-175.630568,0.0002465,7]
[370385529,1751988670272,-175.630568,0.0002465,7]
[370385530,1751988670281,-151.0,0.0002465,7]
[370385531,1751988670290,-151.0,0.0002465,7]
[370385532,1751988670299,-151.0,0.0002465,7]
[370385533,1751988670309,-151.0,0.0002465,7]
[370385534,1751988670318,-155.0,0.00024656,2]
[370385535,1751988670327,-1027.44,0.00024657,2]
[370385536,1751988670337,-151.0,0.00024657,7]
[370385537,1751988670346,-863.55,0.00024657,2]
[370385538,1751988670356,-592.45,0.00024657,2]
[370385539,1751988670365,-512.5,0.00024657,2]
[370385540,1751988670375,-941.19,0.00024657,2]
[370385541,1751988670384,-898.19,0.00024657,2]
[370385542,1751988670393,-468.58,0.00024657,2]
[370385543,1751988670403,-811.62,0.00024657,2]
[370385544,1751988670412,-862.49,0.00024657,2]
[370385545,1751988670421,-510.43,0.00024657,2]
[370385546,1751988670431,-1555.07,0.00024657,2]
[370385547,1751988670440,-855.52,0.00024657,2]
[370385548,1751988670449,-451.79,0.00024657,4]
[370385549,1751988670460,-451.79,0.00024657,4]
[370385550,1751988670473,-451.79,0.00024657,4]
[370385551,1751988670482,-451.79,0.00024657,4]
[370385552,1751988670491,-460.0,0.00024657,2]
[370385553,1751988670500,-451.79,0.00024657,4]
[370385554,1751988670510,-451.79,0.00024657,4]
[370385555,1751988670519,-451.79,0.00024657,4]
[370385556,1751988670528,-451.79,0.00024657,4]
[370385557,1751988670539,-451.79,0.00024657,4]
[370385558,1751988670551,-451.79,0.00024657,4]
[370385559,1751988670561,-451.79,0.00024657,4]
[370385560,1751988670570,-451.79,0.00024657,4]
[370385561,1751988670580,-545.34,0.00024657,2]
[370385562,1751988670590,-451.79,0.00024657,4]
[370385563,1751988670599,-451.79,0.00024657,4]
[370385564,1751988670610,-451.79,0.00024657,4]
[370385565,1751988670621,-451.79,0.00024657,4]
[370385566,1751988670631,-451.79,0.00024657,4]
[370385567,1751988670640,-451.79,0.00024657,4]
[370385568,1751988670649,-451.79,0.00024657,4]
[370385569,1751988670658,-451.79,0.00024657,4]
[370385570,1751988670667,-451.79,0.00024657,4]
[370385571,1751988670676,-1397.65,0.00024657,2]
[370385572,1751988670685,-1921.6,0.00024657,2]
[370385573,1751988670694,-377.8290297,0.00024657,2]
[370385574,1751988670703,-1026.07,0.00024657,2]
[370385575,1751988670715,-490.93,0.00024657,2]
[370385576,1751988670724,-758.19,0.00024657,2]
[370385577,1751988670734,-838.86,0.00024657,2]
[370385578,1751988670743,-5127.49,0.00024657,2]
[370385579,1751988670752,-901.2,0.00024657,2]
[370385580,1751988670761,-862.21,0.00024657,2]
[370385581,1751988670771,-2753.27,0.00024657,2]
[370385582,1751988670780,-835.38,0.00024657,2]
[370385583,1751988670789,-658.66,0.00024657,2]
[370385584,1751988670798,-3833.71,0.00024657,2]
[370385585,1751988670808,-460.0,0.00024657,2]
[370385586,1751988670818,-151.0,0.00024657,7]
[370385587,1751988670827,-460.0,0.00024657,2]
[370385588,1751988670836,-646.83,0.00024657,2]
[370385589,1751988670846,-724.43,0.00024657,2]
[370385590,1751988670855,-673.37,0.00024657,2]
[370385591,1751988670865,-1708.39,0.00024657,2]
[370385592,1751988670874,-392.92966403,0.00024657,2]
[370385593,1751988670883,-597.74,0.00024657,2]
[370385594,1751988670892,-844.71,0.00024657,2]
[370385595,1751988670902,-664.63,0.00024657,2]
[370385596,1751988670912,-2473.14,0.00024657,2]
[370385597,1751988670921,-646.14,0.00024657,2]
[370385598,1751988670930,-487.61,0.00024657,2]
[370385599,1751988670940,-1506.99,0.00024657,2]
[370385600,1751988670950,-574.86,0.00024657,2]
[370385601,1751988670959,-2788.13,0.00024657,2]
[370385602,1751988670969,-688.11,0.00024657,2]
[370385603,1751988670979,-752.17,0.00024657,2]
[370385604,1751988670988,-694.91,0.00024657,2]
[370385605,1751988670997,-707.53,0.00024657,2]
[370385606,1751988671007,-151.0,0.00024657,2]
[370385607,1751988671016,-229.591761,0.00024657,2]
[370385608,1751988671025,-2901.31,0.00024657,2]
[370385609,1751988671034,-605.75,0.00024657,2]
[370385610,1751988671043,-460.0,0.00024657,2]
[370385611,1751988671053,-460.0,0.00024657,2]
[370385612,1751988671063,-1269.5,0.00024657,2]
[370385613,1751988671072,-5408.87,0.00024657,2]
[370385614,1751988671082,-4052.16,0.00024657,2]
[370385615,1751988671091,-723.51,0.00024657,2]
[370385616,1751988671101,-1137.52,0.00024657,2]
[370385617,1751988671111,-776.58,0.00024657,2]
[370385618,1751988671120,-253.813096,0.00024657,7]
[370385619,1751988671130,-510.15,0.00024657,2]
[370385620,1751988671139,-681.91,0.00024657,2]
[370385621,1751988671149,-1009.01,0.00024657,2]
[370385622,1751988671158,-2559.5,0.00024657,2]
[370385623,1751988671168,-1454.34,0.00024657,2]
[370385624,1751988671177,-677.21,0.00024657,2]
[370385625,1751988671187,-960.91,0.00024657,2]
[370385626,1751988671196,-510.04,0.00024657,2]
[370385627,1751988671206,-3140.82,0.00024657,2]
[370385628,1751988671216,-200.0,0.00024658,15]
[370385629,1751988671225,-289.19354711,0.00024658,2]
[370385630,1751988671235,-200.0,0.00024658,2]
[370385631,1751988671245,-380.0,0.00024658,2]
[370385632,1751988671255,-151.0,0.00024658,7]
[370385633,1751988671264,-500.0,0.00024658,2]
[370385634,1751988671274,-168.0,0.00024662,2]
[370385635,1751988671283,-500.0,0.00024685,2]
[370385636,1751988671292,-550.29687549,0.0002469,10]
[370385637,1751988671302,-160.0,0.0002469,10]
[370385638,1751988671311,-6000.12112762,0.00024693,11]
[370385639,1751988671320,-1166080.75312836,0.000247,7]
[370385640,1751988731674,7137.2542684,0.00017719,2]
[370385641,1751988843372,3500.0,0.00018151,2]
[370385642,1751988904249,5000.0,0.00018151,2]
[370385643,1751988919696,5000.0,0.00018151,2]
[370385644,1751988972740,298.2154729,0.00017667,2]
[370385645,1751989118578,243.148411,0.00013699,2]
[370385647,1751989202762,1000.0,0.00027397,120]
[370385649,1751989349464,24900.0,0.00017666,2]
[370385693,1751989832407,-160.0,0.0001848,2]
[370385694,1751989832419,-191.87113753,0.00018663,2]
[370385695,1751989832432,-1008.12886247,0.00018663,2]
[370385696,1751989832442,-649.78031339,0.00018665,2]
[370385697,1751989832455,-550.21968661,0.00018665,2]
[370385698,1751989832464,-177.0,0.00018665,2]
[370385699,1751989832474,-300.0,0.00018665,2]
[370385700,1751989832483,-298.05676269,0.00018666,2]
[370385731,1751989837732,-591.7026766,0.000186,2]
[370385732,1751989837741,-1.94323731,0.00018666,2]
[370385733,1751989837751,-500.0,0.00018666,2]
[370385734,1751989837760,-201.0294478,0.00018666,2]
[370385735,1751989837769,-500.0,0.00018666,2]
[370385736,1751989837778,-500.0,0.00018666,2]
[370385737,1751989837788,-500.0,0.00018666,2]
[370385738,1751989837796,-500.0,0.00018666,2]
[370385739,1751989837806,-500.0,0.00018666,2]
[370385740,1751989837815,-500.0,0.00018666,2]
[370385741,1751989837824,-500.0,0.00018666,2]
[370385742,1751989837834,-500.0,0.00018666,2]
[370385743,1751989837843,-500.0,0.00018666,2]
[370385745,1751989837854,-296.4720842,0.00018666,2]
[370385747,1751989837864,-500.0,0.00018666,2]
[370385748,1751989837873,-500.0,0.00018666,2]
[370385749,1751989837882,-500.0,0.00018666,2]
[370385751,1751989837891,-238.65672953,0.00018666,2]
[370385752,1751989837900,-500.0,0.00018666,2]
[370385753,1751989837910,-500.0,0.00018666,2]
[370385754,1751989837920,-500.0,0.00018666,2]
[370385755,1751989837930,-223.58185521,0.00018666,2]
[370385756,1751989837944,-500.0,0.00018666,2]
[370385757,1751989837953,-500.0,0.00018666,2]
[370385758,1751989837962,-500.0,0.00018666,2]
[370385759,1751989837971,-500.0,0.00018666,2]
[370385760,1751989837981,-500.0,0.00018666,2]
[370385761,1751989837991,-500.0,0.00018666,2]
[370385762,1751989838001,-500.0,0.00018666,2]
[370385763,1751989838012,-500.0,0.00018666,2]
[370385764,1751989838022,-500.0,0.00018666,2]
[370385765,1751989838033,-500.0,0.00018666,2]
[370385766,1751989838044,-500.0,0.00018666,2]
[370385767,1751989838055,-500.0,0.00018666,2]
[370385768,1751989838065,-500.0,0.00018666,2]
[370385769,1751989838076,-500.0,0.00018666,2]
[370385770,1751989838088,-500.0,0.00018666,2]
[370385771,1751989838099,-373.30461926,0.00018666,2]
[370385772,1751989838109,-500.0,0.00018666,2]
[370385773,1751989838119,-500.0,0.00018666,2]
[370385774,1751989838128,-500.0,0.00018666,2]
[370385775,1751989838138,-500.0,0.00018666,2]
[370385776,1751989838147,-500.0,0.00018666,2]
[370385777,1751989838157,-500.0,0.00018666,2]
[370385778,1751989838168,-500.0,0.00018666,2]
[370385779,1751989838177,-500.0,0.00018666,2]
[370385780,1751989838187,-500.0,0.00018666,2]
[370385781,1751989838197,-500.0,0.00018666,2]
[370385782,1751989838206,-500.0,0.00018666,2]
[370385783,1751989838217,-500.0,0.00018666,2]
[370385784,1751989838227,-500.0,0.00018666,2]
[370385785,1751989838237,-500.0,0.00018666,2]
[370385786,1751989838247,-500.0,0.00018666,2]
[370385787,1751989838256,-500.0,0.00018666,2]
[370385788,1751989838266,-500.0,0.00018666,2]
[370385789,1751989838276,-500.0,0.00018666,2]
[370385790,1751989838286,-500.0,0.00018666,2]
[370385791,1751989838296,-500.0,0.00018666,2]
[370385792,1751989838305,-500.0,0.00018666,2]
[370385793,1751989838315,-500.0,0.00018666,2]
[370385794,1751989838324,-500.0,0.00018666,2]
[370385795,1751989838334,-500.0,0.00018666,2]
[370385796,1751989838343,-500.0,0.00018666,2]
[370385797,1751989838353,-451.33286333,0.00018666,2]
[370385798,1751989838362,-500.0,0.00018666,2]
[370385799,1751989838372,-500.0,0.00018666,2]
[370385800,1751989838381,-500.0,0.00018666,2]
[370385801,1751989838390,-313.06277302,0.00018666,2]
[370385802,1751989838400,-500.0,0.00018666,2]
[370385803,1751989838409,-500.0,0.00018666,2]
[370385804,1751989838418,-500.0,0.00018666,2]
[370385805,1751989838427,-500.0,0.00018667,2]
[370385806,1751989838437,-19983.91371376,0.00018667,2]
[370385807,1751989838718,-30016.08628624,0.00018667,2]
[370385808,1751989838728,-501.4793441,0.00018667,2]
[370385809,1751989838738,-36397.0118909,0.00018668,2]
[370385810,1751989838870,-333602.9881091,0.00018668,2]
[370385811,1751989838879,-251.74826949,0.000187,2]
[370385812,1751989838888,-1000.0,0.00018772,2]
[370385813,1751989838897,-1000.0,0.00018772,2]
[370385814,1751989838907,-1000.0,0.00018772,2]
[370385815,1751989838916,-1000.0,0.00018772,2]
[370385816,1751989838925,-1000.0,0.00018772,2]
[370385817,1751989838934,-1000.0,0.00018772,2]
[370385818,1751989838943,-1000.0,0.00018772,2]
[370385819,1751989838953,-1000.0,0.00018772,2]
[370385820,1751989838962,-1000.0,0.00018772,2]
[370385821,1751989838971,-1000.0,0.00018772,2]
[370385822,1751989838981,-1000.0,0.00018772,2]
[370385823,1751989838990,-1000.0,0.00018772,2]
[370385824,1751989838999,-1000.0,0.00018772,2]
[370385825,1751989839008,-1000.0,0.00018772,2]
[370385826,1751989839017,-1000.0,0.00018772,2]
[370385827,1751989839026,-1000.0,0.00018772,2]
[370385828,1751989839036,-1000.0,0.00018772,2]
[370385829,1751989839045,-1000.0,0.00018772,2]
[370385830,1751989839054,-1000.0,0.00018772,2]
[370385831,1751989839062,-1000.0,0.00018772,2]
[370385832,1751989839072,-1000.0,0.00018772,2]
[370385833,1751989839081,-1000.0,0.00018772,2]
[370385834,1751989839094,-775.97777487,0.00018772,2]
[370385835,1751989839102,-251.74826946,0.00018795,2]
[370385836,1751989839111,-251.74826946,0.00018889,2]
[370385837,1751989839121,-306.57788128,0.000189,2]
[370385838,1751989839130,-251.74826946,0.00018984,2]
[370385839,1751989839139,-251.74826946,0.00019078,2]
[370385840,1751989839148,-635.50908631,0.00019157,2]
[370385841,1751989839157,-500.0,0.00019173,2]
[370385842,1751989839167,-500.0,0.00019173,2]
[370385843,1751989839177,-500.0,0.00019173,2]
[370385844,1751989839186,-500.0,0.00019173,2]
[370385845,1751989839195,-500.0,0.00019173,2]
[370385846,1751989839205,-500.0,0.00019173,2]
[370385847,1751989839215,-500.0,0.00019173,2]
[370385848,1751989839224,-180.44949262,0.00019178,2]
[370385849,1751989839234,-460.0,0.00019178,2]
[370385850,1751989839243,-460.3234378,0.00019178,2]
[370385851,1751989839252,-460.0,0.00019178,2]
[370385852,1751989839261,-460.0,0.00019178,2]
[370385853,1751989839270,-460.0,0.00019178,2]
[370385854,1751989839280,-460.0,0.00019178,2]
[370385855,1751989839289,-460.0,0.00019178,2]
[370385856,1751989839299,-460.0,0.00019178,2]
[370385857,1751989839308,-460.0,0.00019178,2]
[370385858,1751989839317,-460.0,0.00019178,2]
[370385859,1751989839326,-460.0,0.00019178,2]
[370385860,1751989839335,-460.0,0.00019178,2]
[370385861,1751989839344,-460.0,0.00019178,2]
[370385862,1751989839354,-460.0,0.00019178,2]
[370385863,1751989839363,-460.0,0.00019178,2]
[370385864,1751989839372,-460.0,0.00019178,2]
[370385865,1751989839382,-460.0,0.00019178,2]
[370385866,1751989839391,-192.89041772,0.00019178,2]
[370385867,1751989839401,-365.67973378,0.00019178,2]
[370385868,1751989839410,-460.0,0.00019178,2]
[370385869,1751989839420,-460.0,0.00019178,2]
[370385870,1751989839429,-359.45927333,0.00019178,2]
[370385871,1751989839438,-588.12711238,0.00019178,2]
[370385872,1751989839448,-460.0,0.00019178,2]
[370385873,1751989839458,-460.0,0.00019178,2]
[370385874,1751989839467,-430.79122447,0.00019178,2]
[370385875,1751989839477,-187.69660434,0.00019178,2]
[370385876,1751989839488,-460.0,0.00019178,2]
[370385877,1751989839498,-460.0,0.00019178,2]
[370385878,1751989839508,-460.0,0.00019178,2]
[370385879,1751989839518,-460.0,0.00019178,2]
[370385880,1751989839527,-460.0,0.00019178,2]